bitfinex/quotes_SOLUSD_20220302
["timestamp","ask_amount","ask_price","bid_price","bid_amount"]
[1646210040351,6.0,104.29,104.2,155.30196707]
[1646210040555,6.0,104.29,104.22,4.5]
[1646210040753,6.0,104.29,104.23,58.54077806]
[1646210040951,6.0,104.29,104.23,58.79077806]
[1646210042852,6.0,104.29,104.23,63.29077806]
[1646210043053,6.0,104.29,104.23,58.79077806]
[1646210043453,6.0,104.29,104.24,4.5]
[1646210043659,6.0,104.29,104.25,56.54913482]
[1646210043855,6.0,104.29,104.25,56.79913482]
[1646210044053,6.0,104.3,104.25,56.79913482]
[1646210044454,6.0,104.32,104.25,56.79913482]
[1646210044856,103.49,104.33,104.25,56.79913482]
[1646210045054,21.72394122,104.32,104.25,0.25]
[1646210045254,6.0,104.31,104.24,4.75]
[1646210045656,0.40987072,104.3,104.24,4.75]
[1646210045854,6.25,104.31,104.24,4.75]
[1646210046058,1.0019111,104.3,104.24,4.5]
[1646210046256,103.49,104.29,104.21,60.25906817]
[1646210046455,21.72394122,104.28,104.21,60.25906817]
[1646210046655,6.0,104.27,104.21,60.25906817]
[1646210046856,1.0019111,104.26,104.21,60.25906817]
[1646210047057,6.0,104.25,104.21,60.25906817]
[1646210047361,6.0,104.25,104.19,4.5]
[1646210047656,6.0,104.25,104.18,14.3952]
[1646210047956,162.0,104.25,104.15,76.6739]
[1646210048158,0.43870805,104.24,104.13,72.688]
[1646210048357,21.72394122,104.24,104.14,51.92651224]
[1646210048556,1.0019111,104.22,104.14,70.82751224]
[1646210048757,6.0,104.21,104.14,70.82751224]
[1646210049159,6.0,104.21,104.14,66.32751224]
[1646210049357,6.0,104.21,104.14,66.57751224]
[1646210049558,6.0,104.21,104.14,71.07751224]
[1646210049960,18.93188412,104.2,104.14,71.07751224]
[1646210050159,6.0,104.19,104.14,71.07751224]
[1646210050358,6.0,104.19,104.14,66.57751224]
[1646210050558,6.0,104.19,104.14,71.07751224]
[1646210050761,6.0,104.23,104.14,71.07751224]
[1646210051159,6.0,104.23,104.14,73.62655227]
[1646210051361,6.0,104.24,104.14,80.66655227]
[1646210051561,24.5869,104.25,104.16,57.50842861]
[1646210051759,24.5869,104.25,104.17,14.3976]
[1646210051959,24.5869,104.25,104.17,14.6476]
[1646210052359,24.5869,104.25,104.17,17.19664003]
[1646210052762,24.5869,104.25,104.18,148.92115762]
[1646210052960,6.0,104.24,104.2,52.50234002]
[1646210053160,6.0,104.25,104.2,52.75234002]
[1646210054260,24.9166,104.28,104.2,67.14554002]
[1646210055059,184.7536,104.28,104.17,2.54904003]
[1646210055263,167.96789091,104.27,104.15,11.54]
[1646210055463,167.54,104.27,104.14,14.4008]
[1646210055661,103.49,104.26,104.14,14.4008]
[1646210055863,107.578,104.26,104.14,14.4008]
[1646210056065,119.91941862,104.25,104.15,59.18483522]
[1646210056262,6.0,104.24,104.15,59.18483522]
[1646210056463,6.0,104.24,104.15,59.43483522]
[1646210056864,58.88442435,104.23,104.14,14.4008]
[1646210057163,0.42634488,104.21,104.13,5.0]
[1646210057364,21.22834488,104.21,104.13,5.0]
[1646210057562,6.0,104.2,104.13,5.0]
[1646210057966,6.0,104.2,104.13,61.3330218]
[1646210058363,6.0,104.2,104.13,56.3330218]
[1646210058966,103.49,104.2,104.11,3.838]
[1646210059170,6.0,104.2,104.11,3.838]
[1646210059365,6.0,104.2,104.11,8.838]
[1646210059766,107.33,104.2,104.11,3.838]
[1646210060064,10.09,104.2,104.11,54.98129334]
[1646210060464,107.58,104.2,104.11,55.23129334]
[1646210060666,10.09,104.2,104.11,55.23129334]
[1646210061066,6.25,104.2,104.11,167.12719334]
[1646210061467,6.0,104.21,104.12,5.0]
[1646210061666,103.49,104.21,104.13,47.01073228]
[1646210061866,107.329,104.21,104.13,47.01073228]
[1646210062068,165.839,104.21,104.13,47.01073228]
[1646210062468,177.379,104.21,104.11,3.838]
[1646210062670,183.78,104.21,104.11,4.088]
[1646210062891,184.03,104.21,104.11,4.088]
[1646210063068,198.4374,104.21,104.11,4.088]
[1646210063470,198.4374,104.21,104.11,61.57404936]
[1646210063667,198.4374,104.21,104.11,61.32404936]
[1646210064070,212.9693,104.21,104.11,61.32404936]
[1646210064270,212.9693,104.21,104.11,3.838]
[1646210064468,0.43309713,104.2,104.11,3.838]
[1646210064671,111.8996,104.19,104.11,3.838]
[1646210064871,6.0,104.18,104.11,3.838]
[1646210065068,112.615,104.18,104.11,3.838]
[1646210065271,124.155,104.18,104.11,3.838]
[1646210065868,138.5661,104.18,104.11,3.838]
[1646210066869,197.0761,104.18,104.11,3.838]
[1646210067069,0.84939624,104.17,104.05,14.4135]
[1646210067270,167.54,104.16,104.05,14.4135]
[1646210067471,64.51,104.15,104.05,14.4135]
[1646210067671,83.053,104.15,104.05,14.4135]
[1646210067871,83.053,104.15,104.06,46.14099719]
[1646210068073,83.303,104.15,104.06,46.14099719]
[1646210068473,101.49977872,104.15,104.06,46.14099719]
[1646210068672,97.49,104.12,104.06,46.14099719]
[1646210068873,97.49,104.12,104.03,3.842]
[1646210068874,162.0,104.11,104.03,3.842]
[1646210069073,162.0,104.11,104.01,5.0]
[1646210069274,156.0,104.09,104.01,5.0]
[1646210069476,6.0,104.08,104.01,5.0]
[1646210069874,6.0,104.08,104.01,60.67480373]
[1646210071278,6.0,104.09,104.01,60.67480373]
[1646210071478,6.0,104.1,104.01,75.09440373]
[1646210071680,6.0,104.1,104.01,97.65182202]
[1646210071879,6.0,104.1,104.02,5.0]
[1646210072080,11.54,104.13,104.03,44.65032744]
[1646210072280,61.5723,104.14,104.03,142.39032744]
[1646210072480,46.1883,104.14,104.04,2.54904003]
[1646210072680,23.1491,104.16,104.07,111.9006]
[1646210072883,23.1491,104.16,104.08,55.76845848]
[1646210073080,23.1491,104.16,104.08,58.56749851]
[1646210073681,6.0,104.15,104.08,63.56749851]
[1646210074082,6.25,104.15,104.08,77.97739851]
[1646210074485,6.25,104.15,104.08,72.97739851]
[1646210075086,6.0,104.15,104.08,77.97739851]
[1646210076091,23.2203,104.19,104.09,100.03904003]
[1646210076290,6.0,104.18,104.11,14.4045]
[1646210076493,6.0,104.18,104.12,43.55731399]
[1646210076691,23.2203,104.19,104.12,43.80731399]
[1646210077091,23.2203,104.19,104.12,48.80731399]
[1646210077791,6.0,104.18,104.12,63.21181399]
[1646210078202,6.0,104.18,104.12,58.21181399]
[1646210078406,6.0,104.18,104.12,63.21181399]
[1646210078806,6.25,104.18,104.12,63.21181399]
[1646210079104,6.0,104.18,104.12,63.21181399]
[1646210080304,6.25,104.18,104.12,63.21181399]
[1646210080505,6.25,104.18,104.12,58.21181399]
[1646210080909,6.25,104.18,104.12,63.21181399]
[1646210081306,6.25,104.18,104.12,58.21181399]
[1646210081708,6.25,104.18,104.12,63.21181399]
[1646210081906,6.0,104.18,104.12,63.21181399]
[1646210082106,23.6987,104.21,104.14,58.91180781]
[1646210082307,6.0,104.2,104.14,64.16180781]
[1646210082507,24.7016,104.24,104.15,2.54904003]
[1646210082706,6.0,104.23,104.15,2.79904003]
[1646210082905,6.0,104.23,104.15,14.33904003]
[1646210083306,6.0,104.23,104.16,60.27060706]
[1646210083516,6.0,104.23,104.16,60.52060706]
[1646210083906,6.0,104.23,104.17,14.3971]
[1646210084206,6.0,104.23,104.18,46.33649196]
[1646210084409,6.0,104.23,104.18,46.58649196]
[1646210084612,10.05577689,104.23,104.18,46.58649196]
[1646210085007,6.25,104.23,104.18,46.58649196]
[1646210086212,3.09013796,104.22,104.15,30.9394]
[1646210086409,6.0,104.21,104.15,19.6494]
[1646210086708,6.0,104.21,104.15,19.3994]
[1646210087108,0.37519576,104.2,104.15,19.3994]
[1646210087309,0.37519576,104.2,104.16,54.23190875]
[1646210087509,6.0,104.21,104.16,54.23190875]
[1646210087909,6.25,104.23,104.16,54.23190875]
[1646210088110,6.25,104.23,104.16,68.88060875]
[1646210088913,6.25,104.23,104.16,73.88060875]
[1646210089714,3.35593578,104.22,104.16,73.88060875]
[1646210089914,103.49,104.21,104.16,59.48190875]
[1646210090113,116.85991654,104.2,104.16,0.25]
[1646210090314,116.85991654,104.2,104.14,0.25]
[1646210090315,6.0,104.19,104.14,0.25]
[1646210090513,6.0,104.19,104.15,5.0]
[1646210090813,6.0,104.19,104.15,5.25]
[1646210091212,87.2004,104.22,104.15,5.25]
[1646210091413,97.49,104.21,104.15,5.25]
[1646210091613,6.0,104.2,104.15,5.25]
[1646210091814,103.49,104.2,104.15,5.25]
[1646210092017,121.39825134,104.2,104.15,55.95336171]
[1646210092213,121.39825134,104.2,104.12,14.4037]
[1646210092414,179.90825134,104.2,104.11,2.54904003]
[1646210092616,156.0,104.18,104.1,3.84]
[1646210092814,97.49,104.16,104.1,3.84]
[1646210093013,6.0,104.15,104.1,3.84]
[1646210093214,11.06760098,104.15,104.1,46.74689145]
[1646210094417,6.0,104.15,104.1,46.74689145]
[1646210095416,6.0,104.16,104.1,46.74689145]
[1646210095616,24.21797103,104.16,104.1,46.74689145]
[1646210096019,6.0,104.16,104.1,46.74689145]
[1646210096416,6.0,104.18,104.1,46.99689145]
[1646210097221,6.0,104.18,104.1,63.95313148]
[1646210097718,6.25,104.18,104.1,63.95313148]
[1646210098121,27.67714875,104.18,104.1,63.95313148]
[1646210098320,125.16714875,104.18,104.1,43.15689145]
[1646210098522,195.21714875,104.18,104.1,43.15689145]
[1646210098724,195.21714875,104.18,104.1,42.90689145]
[1646210098919,39.21714875,104.18,104.1,42.90689145]
[1646210099121,17.79,104.18,104.1,42.90689145]
[1646210099320,6.25,104.18,104.1,42.90689145]
[1646210100122,23.25487315,104.18,104.1,57.56419145]
[1646210100321,23.25487315,104.18,104.1,62.56419145]
[1646210100520,23.00487315,104.18,104.1,62.56419145]
[1646210100721,6.0,104.18,104.1,62.56419145]
[1646210101324,6.0,104.18,104.1,57.56419145]
[1646210101822,6.0,104.18,104.12,44.29275778]
[1646210102021,6.25,104.18,104.12,44.54275778]
[1646210103629,27.5985,104.21,104.12,47.09179781]
[1646210103826,6.0,104.2,104.12,61.49569781]
[1646210104026,6.0,104.22,104.13,102.49]
[1646210104225,6.0,104.23,104.13,16.79]
[1646210104428,6.0,104.23,104.14,2.54904003]
[1646210104624,76.77572071,104.22,104.14,55.12200284]
[1646210104826,103.49,104.21,104.14,55.12200284]
[1646210105026,4.46013161,104.2,104.14,55.12200284]
[1646210105225,6.0,104.19,104.14,55.12200284]
[1646210106531,16.33470212,104.18,104.14,55.12200284]
[1646210106731,6.0,104.17,104.14,55.12200284]
[1646210106933,103.49,104.19,104.13,5.0]
[1646210107534,6.0,104.19,104.13,5.0]
[1646210107732,156.0,104.18,104.13,5.0]
[1646210107934,97.49,104.14,104.1,50.49810366]
[1646210108132,6.0,104.13,104.1,50.49810366]
[1646210108332,3.03219997,104.12,104.1,50.49810366]
[1646210108533,0.25,104.14,104.08,5.0]
[1646210108835,103.49,104.14,104.04,60.119]
[1646210109032,103.74,104.14,104.06,14.4128]
[1646210109239,103.74,104.14,104.06,14.6628]
[1646210109533,103.74,104.14,104.07,45.7457714]
[1646210109733,103.74,104.14,104.07,45.9957714]
[1646210109933,6.25,104.14,104.07,45.9957714]
[1646210110133,6.25,104.14,104.07,60.4071714]
[1646210110332,0.25,104.14,104.07,60.4071714]
[1646210110532,6.0,104.15,104.07,60.4071714]
[1646210110733,6.0,104.15,104.07,60.1571714]
[1646210110932,6.0,104.15,104.07,65.1571714]
[1646210111933,6.0,104.15,104.07,176.73621143]
[1646210112131,6.0,104.17,104.07,206.05442985]
[1646210112332,6.0,104.17,104.12,19.4046]
[1646210112532,6.0,104.17,104.12,19.6546]
[1646210112733,24.7233,104.21,104.12,14.6546]
[1646210112934,24.2698,104.24,104.13,49.84665286]
[1646210112935,3.84,104.23,104.13,49.84665286]
[1646210113132,46.4682,104.24,104.13,61.63665286]
[1646210113336,46.4682,104.24,104.16,59.61143638]
[1646210113535,46.4682,104.24,104.16,59.86143638]
[1646210114138,9.59758084,104.23,104.16,59.86143638]
[1646210115535,6.0,104.23,104.16,59.86143638]
[1646210115734,103.49,104.23,104.16,64.86143638]
[1646210115936,6.0,104.23,104.16,59.86143638]
[1646210116140,9.838,104.23,104.16,64.86143638]
[1646210116538,3.838,104.25,104.16,74.26023638]
[1646210116748,5.01346569,104.24,104.19,5.0]
[1646210116939,5.01346569,104.24,104.2,56.17629101]
[1646210117141,5.01346569,104.24,104.2,56.42629101]
[1646210117340,47.6115,104.27,104.2,56.42629101]
[1646210117540,8.49805226,104.26,104.2,56.42629101]
[1646210117740,5.01248353,104.26,104.2,61.42629101]
[1646210118140,6.0,104.25,104.2,61.42629101]
[1646210118340,6.0,104.26,104.2,61.42629101]
[1646210118742,24.66533492,104.25,104.2,5.25]
[1646210118942,0.46627386,104.23,104.2,0.25]
[1646210119161,0.46627386,104.23,104.16,2.54904003]
[1646210119162,0.46627386,104.23,104.16,2.79904003]
[1646210119561,6.25,104.24,104.16,2.79904003]
[1646210119762,6.25,104.24,104.18,48.56600648]
[1646210119963,6.25,104.24,104.18,48.81600648]
[1646210120363,6.25,104.24,104.18,53.81600648]
[1646210120961,6.0,104.26,104.18,53.81600648]
[1646210121164,6.0,104.26,104.18,146.30600648]
[1646210121363,8.85010145,104.3,104.19,97.49]
[1646210121563,8.85010145,104.3,104.21,116.8808]
[1646210121564,5.01210145,104.3,104.21,116.8808]
[1646210121763,5.01210145,104.3,104.22,44.9631675]
[1646210121967,5.01210145,104.3,104.22,54.3481675]
[1646210122165,5.01210145,104.3,104.23,6.0]
[1646210122365,5.01210145,104.3,104.23,20.33904003]
[1646210122564,3.836,104.36,104.24,16.93594003]
[1646210122765,3.836,104.36,104.25,6.0]
[1646210122965,97.49,104.37,104.29,5.0]
[1646210123165,3.833,104.36,104.29,5.25]
[1646210123468,6.0,104.35,104.29,14.183]
[1646210123865,6.0,104.36,104.29,14.183]
[1646210124065,24.53930449,104.35,104.3,49.60557579]
[1646210124267,6.0,104.34,104.3,0.25]
[1646210124471,6.0,104.34,104.29,0.25]
[1646210124666,6.0,104.34,104.26,55.48574003]
[1646210124868,6.0,104.34,104.26,52.9367]
[1646210125069,10.085,104.34,104.26,52.9367]
[1646210125268,8.02054783,104.33,104.27,45.3295978]
[1646210125667,6.25,104.34,104.27,45.3295978]
[1646210125866,0.25,104.34,104.27,50.3295978]
[1646210126067,0.25,104.35,104.27,50.5795978]
[1646210126267,64.51,104.36,104.27,5.0]
[1646210126467,4.26280199,104.35,104.27,5.0]
[1646210126767,6.0,104.34,104.27,5.0]
[1646210127166,6.0,104.35,104.27,5.0]
[1646210127468,24.99898139,104.34,104.27,65.57811291]
[1646210127669,6.0,104.33,104.27,65.57811291]
[1646210128069,3.72687093,104.32,104.27,65.57811291]
[1646210128267,6.0,104.31,104.27,65.57811291]
[1646210128874,3.72687093,104.32,104.27,65.57811291]
[1646210129070,63.9172,104.35,104.27,65.57811291]
[1646210129271,6.0,104.34,104.27,65.57811291]
[1646210129775,63.9172,104.35,104.27,60.82811291]
[1646210130171,20.69332443,104.34,104.27,65.82811291]
[1646210130472,20.69332443,104.34,104.27,80.21181291]
[1646210130671,20.69332443,104.34,104.27,75.21181291]
[1646210130874,49.5305,104.35,104.28,5.0]
[1646210131072,6.0,104.34,104.28,5.25]
[1646210131472,6.0,104.34,104.28,14.6325]
[1646210131674,3.834,104.39,104.28,14.6325]
[1646210131874,53.04586501,104.39,104.29,48.87758167]
[1646210132076,47.362,104.39,104.31,5.0]
[1646210132275,47.362,104.39,104.31,5.25]
[1646210132876,47.362,104.39,104.31,0.25]
[1646210133075,6.0,104.38,104.32,5.0]
[1646210133275,6.0,104.38,104.33,52.11882085]
[1646210133476,6.0,104.38,104.33,52.36882085]
[1646210133677,47.362,104.39,104.33,57.36882085]
[1646210133877,28.19717089,104.4,104.33,57.36882085]
[1646210134078,184.19717089,104.4,104.33,5.25]
[1646210134284,184.19717089,104.4,104.33,5.0]
[1646210134483,0.43004083,104.39,104.28,23.8811]
[1646210134687,0.43004083,104.39,104.28,0.25]
[1646210134985,0.43004083,104.37,104.28,5.25]
[1646210135283,21.17238525,104.35,104.29,44.47084202]
[1646210135485,6.0,104.34,104.29,44.47084202]
[1646210135682,105.04346707,104.33,104.28,5.0]
[1646210135883,6.0,104.32,104.28,5.0]
[1646210136488,103.49,104.32,104.24,14.3872]
[1646210136687,118.66238525,104.31,104.23,58.03889043]
[1646210136887,6.0,104.3,104.23,49.20389043]
[1646210137087,7.55346707,104.29,104.23,49.45389043]
[1646210137290,6.0,104.28,104.23,49.45389043]
[1646210137489,21.17238525,104.27,104.23,49.20389043]
[1646210137689,21.17238525,104.27,104.22,5.0]
[1646210137888,177.17238525,104.27,104.22,5.0]
[1646210138188,0.51747856,104.24,104.15,11.54]
[1646210138390,0.51747856,104.24,104.13,11.54]
[1646210138391,12.247,104.24,104.13,11.54]
[1646210138588,12.247,104.24,104.15,5.0]
[1646210138790,7.55346707,104.23,104.16,53.20254838]
[1646210138992,20.46664293,104.21,104.16,53.20254838]
[1646210139189,6.0,104.2,104.15,5.0]
[1646210139493,6.0,104.2,104.12,59.221]
[1646210139494,6.0,104.2,104.13,3.839]
[1646210139894,103.49,104.2,104.12,3.84]
[1646210140088,8.65560999,104.19,104.12,50.14285657]
[1646210140291,6.0,104.18,104.13,3.84]
[1646210140489,11.96,104.18,104.14,49.14361053]
[1646210140891,11.96,104.18,104.11,3.84]
[1646210141392,109.45,104.18,104.11,3.84]
[1646210141594,167.96,104.18,104.1,2.54904003]
[1646210141794,0.46835551,104.17,104.07,2.54904003]
[1646210141991,0.46835551,104.17,104.06,74.305]
[1646210141992,156.0,104.16,104.05,14.0389]
[1646210142193,97.49,104.14,104.06,5.0]
[1646210142398,6.0,104.13,104.04,14.4146]
[1646210143092,8.25920939,104.12,104.05,54.05959004]
[1646210143297,6.0,104.11,104.05,54.05959004]
[1646210143893,12.49,104.11,104.05,54.05959004]
[1646210144095,20.46664293,104.1,104.05,54.05959004]
[1646210144294,6.0,104.09,104.02,121.2633]
[1646210144496,6.0,104.09,104.02,33.2128]
[1646210144698,6.0,104.09,104.02,31.91884003]
[1646210144901,6.0,104.09,104.03,22.69863424]
[1646210145094,6.0,104.09,104.04,5.0]
[1646210145297,6.0,104.09,104.04,53.17337999]
[1646210145498,6.0,104.1,104.04,53.17337999]
[1646210146096,6.25,104.1,104.04,53.17337999]
[1646210146298,26.97838856,104.09,104.04,58.17337999]
[1646210146496,6.25,104.1,104.04,53.42337999]
[1646210146696,0.25,104.1,104.04,53.42337999]
[1646210146899,6.0,104.12,104.04,53.42337999]
[1646210147098,6.25,104.12,104.04,53.42337999]
[1646210147501,6.0,104.13,104.04,55.97242002]
[1646210147702,6.0,104.13,104.07,5.0]
[1646210147902,3.842,104.16,104.07,0.25]
[1646210148099,6.0,104.15,104.08,2.54904003]
[1646210148303,6.0,104.15,104.08,2.79904003]
[1646210148501,31.15096825,104.15,104.09,59.74134833]
[1646210148701,31.15096825,104.15,104.09,59.99134833]
[1646210148902,31.40096825,104.15,104.09,59.99134833]
[1646210149903,6.25,104.15,104.09,59.99134833]
[1646210150106,6.0,104.14,104.09,59.99134833]
[1646210150504,6.0,104.16,104.09,59.99134833]
[1646210150906,25.47167438,104.15,104.09,59.99134833]
[1646210151112,6.0,104.14,104.09,59.99134833]
[1646210153629,6.0,104.16,104.09,59.99134833]
[1646210153925,6.25,104.16,104.09,59.99134833]
[1646210154526,30.10769359,104.16,104.09,64.99134833]
[1646210155528,127.59769359,104.16,104.09,64.99134833]
[1646210155729,30.10769359,104.16,104.09,64.99134833]
[1646210155929,127.59769359,104.16,104.09,5.25]
[1646210156130,127.59769359,104.16,104.09,0.25]
[1646210156331,186.10769359,104.16,104.06,7.54904003]
[1646210156532,0.36597248,104.15,104.06,2.79904003]
[1646210156733,0.36597248,104.15,104.06,5.25]
[1646210157332,208.15369359,104.16,104.06,5.25]
[1646210157533,4.86815873,104.14,104.07,59.18838504]
[1646210157736,6.0,104.13,104.07,59.43838504]
[1646210157936,9.842,104.16,104.07,59.43838504]
[1646210158133,6.0,104.16,104.07,61.98742507]
[1646210158533,97.49,104.15,104.07,61.98742507]
[1646210158736,58.51,104.13,104.05,20.80294003]
[1646210158936,30.41703923,104.15,104.02,75.52023828]
[1646210158937,30.41703923,104.15,104.02,79.36223828]
[1646210159234,9.843,104.14,104.03,22.66725482]
[1646210159634,97.49,104.13,104.05,5.0]
[1646210159834,4.54681309,104.11,104.06,46.28320921]
[1646210160036,6.0,104.1,104.06,46.28320921]
[1646210160634,6.0,104.13,104.06,46.28320921]
[1646210160834,6.0,104.14,104.06,46.28320921]
[1646210161033,28.09909574,104.13,104.06,46.28320921]
[1646210161237,6.0,104.12,104.06,46.53320921]
[1646210161835,6.0,104.14,104.06,51.53320921]
[1646210162437,6.0,104.14,104.08,60.05380538]
[1646210162735,6.0,104.14,104.08,60.30380538]
[1646210162938,6.0,104.15,104.08,60.30380538]
[1646210163636,6.0,104.15,104.09,5.0]
[1646210163835,6.0,104.16,104.1,48.03468041]
[1646210164035,6.0,104.16,104.1,48.28468041]
[1646210164536,6.0,104.16,104.1,50.83372044]
[1646210164736,6.0,104.19,104.11,5.0]
[1646210164937,6.0,104.19,104.11,5.25]
[1646210165135,6.0,104.19,104.11,19.6555]
[1646210165335,28.00839695,104.19,104.12,46.8887146]
[1646210165538,125.49839695,104.19,104.12,47.1387146]
[1646210165736,125.49839695,104.19,104.12,0.25]
[1646210166736,184.00839695,104.19,104.11,5.25]
[1646210166937,198.41859695,104.19,104.09,192.10956803]
[1646210167135,3.84,104.18,104.09,197.10956803]
[1646210167336,162.0,104.17,104.09,121.741]
[1646210167536,163.40434825,104.17,104.05,2.54904003]
[1646210167740,156.0,104.15,104.04,112.9]
[1646210167939,156.0,104.13,104.04,117.9]
[1646210168238,12.71745537,104.12,104.05,60.60109986]
[1646210168638,20.45645537,104.12,104.05,60.60109986]
[1646210168838,20.45645537,104.12,104.05,60.85109986]
[1646210169237,20.45645537,104.12,104.05,75.26519986]
[1646210169937,13.739,104.12,104.05,80.26519986]
[1646210170136,6.0,104.12,104.05,80.26519986]
[1646210170340,6.0,104.14,104.05,80.26519986]
[1646210170537,6.0,104.14,104.05,82.81423989]
[1646210170939,6.0,104.14,104.05,77.81423989]
[1646210171139,6.0,104.14,104.06,11.54]
[1646210171341,6.0,104.16,104.09,14.4068]
[1646210171541,6.0,104.17,104.09,127.5568]
[1646210172139,30.32982412,104.17,104.1,43.65245422]
[1646210172338,6.0,104.17,104.1,58.30975422]
[1646210172539,6.0,104.17,104.1,60.85879425]
[1646210172540,6.25,104.17,104.1,60.85879425]
[1646210173040,6.0,104.17,104.1,60.85879425]
[1646210173243,103.49,104.17,104.1,46.45149425]
[1646210173441,27.2028761,104.16,104.1,46.45149425]
[1646210173641,6.0,104.15,104.1,46.45149425]
[1646210174243,6.0,104.16,104.1,46.45149425]
[1646210174443,0.25,104.16,104.1,46.45149425]
[1646210174643,6.25,104.17,104.1,46.45149425]
[1646210174943,125.01982126,104.16,104.1,43.90245422]
[1646210175145,6.0,104.15,104.09,117.9]
[1646210175345,103.49,104.15,104.09,112.9]
[1646210175545,103.49,104.15,104.09,117.9]
[1646210175747,156.0,104.14,104.09,5.0]
[1646210175946,103.49,104.13,104.09,5.0]
[1646210176144,1.19603106,104.12,104.09,5.0]
[1646210176345,106.52219997,104.11,104.09,5.0]
[1646210176747,106.52219997,104.11,104.04,127.3156]
[1646210176748,9.03219997,104.11,104.04,127.3156]
[1646210177146,67.54219997,104.11,104.04,127.3156]
[1646210177351,24.9214249,104.1,104.04,115.44904003]
[1646210177547,3.80442742,104.08,104.04,2.54904003]
[1646210177747,6.0,104.07,104.02,50.86131291]
[1646210177946,13.529,104.07,104.02,50.86131291]
[1646210178748,111.019,104.07,104.01,2.54904003]
[1646210178947,111.019,104.07,104.0,117.9]
[1646210179146,111.019,104.07,104.0,112.9]
[1646210179349,169.529,104.07,104.0,112.9]
[1646210179551,169.529,104.07,103.98,5.0]
[1646210179552,3.844,104.06,103.98,5.0]
[1646210179750,156.0,104.04,103.98,56.60011297]
[1646210179950,6.0,104.03,103.98,5.0]
[1646210180350,58.51,104.02,103.95,113.38079147]
[1646210180548,6.0,104.01,103.95,113.38079147]
[1646210180750,8.398,104.01,103.95,113.38079147]
[1646210180957,6.0,104.0,103.96,57.95433081]
[1646210181450,6.0,104.02,103.96,60.50337084]
[1646210181649,6.0,104.03,103.96,60.50337084]
[1646210181849,6.0,104.04,103.96,60.50337084]
[1646210182050,32.68631326,104.04,103.96,60.50337084]
[1646210182548,28.84031326,104.04,103.96,60.50337084]
[1646210182750,6.0,104.04,103.96,79.92997084]
[1646210183050,6.0,104.05,103.96,115.23064487]
[1646210183350,6.0,104.05,103.97,5.0]
[1646210183554,6.0,104.05,103.97,5.25]
[1646210183751,6.0,104.06,103.98,59.7071262]
[1646210183953,6.0,104.06,103.98,59.9571262]
[1646210184153,7.40348313,104.06,103.99,2.54904003]
[1646210184355,6.0,104.06,104.0,56.91757529]
[1646210185152,103.74,104.06,104.0,56.91757529]
[1646210185353,20.97493604,104.05,104.0,56.91757529]
[1646210185552,6.0,104.04,104.0,57.16757529]
[1646210186354,6.0,104.06,104.0,57.16757529]
[1646210187155,29.85149527,104.06,104.0,57.16757529]
[1646210187557,30.10149527,104.06,104.0,57.16757529]
[1646210188155,30.10149527,104.06,104.0,71.58877529]
[1646210189156,6.0,104.06,104.0,71.58877529]
[1646210189357,6.0,104.06,104.0,74.13781532]
[1646210189557,6.0,104.06,104.0,59.71661532]
[1646210190156,6.0,104.06,104.0,64.71661532]
[1646210190558,6.0,104.06,104.0,79.13791532]
[1646210190759,6.0,104.06,104.0,74.13791532]
[1646210190959,6.0,104.06,104.0,79.13791532]
[1646210191866,6.0,104.07,104.0,74.13791532]